Cogmind - Beta 13 @@@ ROGUE MODE // 2024.03.10 @ 18:18:06 Player: Treadwheel Result: Self-destructed Performance ------------- Evolutions (2) 1000 Regions Visited (4) 800 Robots Destroyed (111) 555 Value Destroyed (2944) 2944 Prototype IDs (6) 120 Alien Tech Used (0) 0 Bonus (0) 0 TOTAL SCORE: 5419 Bonus ------- None Cogmind --------- Core Integrity 244/550 Matter 298/300 Energy 275/275 System Corruption 8% Temperature Cool (0) Movement Treading (160) Location -8/Materials Parts ------- > --- POWER (1) -------- Deuterium Engine > --- PROPULSION (4) --- Light Treads Light Treads Light Treads Improved Treads > --- UTILITY (4) ------ Cooling System High-capacity Storage Unit > --- WEAPON (2) ------- Advanced Beam Cannon Enhanced Autogun > --- INVENTORY (20) --- Light Nuclear Core Light Treads Light Treads Improved Treads Improved Flight Unit Medium Storage Unit Sensor Array Terrain Scan Processor Recoil Stabilizer Light Armor Plating Hardened Light Armor Plating Hacking Suite System Shield Pulse Rifle Shotgun Gauss Rifle Improved Light Cannon Grenade Launcher Datajack Maul Peak State ------------ > --- POWER ------------ Deuterium Engine > --- PROPULSION ------- Light Treads Light Treads Light Treads Improved Treads > --- UTILITY ---------- Cooling System High-capacity Storage Unit Signal Interpreter Hacking Suite > --- WEAPON ----------- Advanced Beam Cannon Enhanced Autogun > --- INVENTORY -------- Light Nuclear Core Light Treads Light Treads Improved Treads Improved Flight Unit Medium Storage Unit Sensor Array Terrain Scan Processor Recoil Stabilizer Hardened Light Armor Plating Hacking Suite System Shield Pulse Rifle Shotgun Gauss Rifle Improved Light Cannon Grenade Launcher Datajack Maul [Rating: 26] Favorites ----------- Power Improved Ion Engine Engine Improved Ion Engine Power Core Light Nuclear Core Propulsion Light Treads Treads Light Treads Leg Aluminum Leg Wheel Wheel Flight Unit Improved Flight Unit Utility High-capacity Storage Unit Device Sensor Array Storage High-capacity Storage Unit Processor Signal Interpreter Hackware Hacking Suite Protection Hardened Light Armor Plating Weapon Improved Light Cannon Energy Gun Small Laser Energy Cannon Advanced Beam Cannon Ballistic Gun Shotgun Ballistic Cannon Improved Light Cannon Special Weapon Mining Laser Impact Weapon Hammer Special Melee Weapon Datajack Build | -11 -10 -10 -9 -8 ------- Run | Yrd Mat Min Mat Mat Slots Evolved 4 | . . . 2 2 Power . | . . . . . Propulsion 2 | . . . 1 1 Utility 2 | . . . 1 1 Weapon . | . . . . . Parts Attached 115 | 4 28 5 51 27 Power 12 | . 3 2 5 2 Engine 11 | . 3 1 5 2 Core 1 | . . 1 . . Reactor . | . . . . . Propulsion 28 | 2 5 . 11 10 Treads 19 | 1 3 . 6 9 Leg . | . . . . . Wheel 8 | 1 2 . 5 . Hover . | . . . . . Flight 1 | . . . . 1 Utility 41 | 1 7 2 21 10 Device 15 | 1 2 1 6 5 Storage 3 | . 3 . . . Processor 2 | . . . 2 . Hackware 1 | . . . . 1 Protection 20 | . 2 1 13 4 Artifact . | . . . . . Weapon 34 | 1 13 1 14 5 Energy Gun 9 | . 6 . 3 . Energy Cannon 7 | . . 1 4 2 Ballistic Gun 3 | 1 . . 1 1 Ballistic Cannon 9 | . 2 . 5 2 Launcher . | . . . . . Special Weapon 1 | . 1 . . . Impact Weapon 3 | . 3 . . . Slashing Weapon . | . . . . . Piercing Weapon . | . . . . . Special Melee Weapon 2 | . 1 . 1 . Unidentified Prototypes 5 | . . . 3 2 Parts Lost 18 | . 5 . 2 11 Power 1 | . 1 . . . Propulsion 9 | . 3 . 1 5 Utility 4 | . . . 1 3 Weapon 4 | . 1 . . 3 Highest Loss Streak 3 | . 2 . 1 3 To Critical Strikes . | . . . . . Average Slot Usage (%) 99 | . 99 99 99 99 Engine 10 | . 13 9 8 9 Core 1 | . . 4 1 . Treads 18 | . 14 14 20 24 Wheel 12 | . 14 14 12 11 Device 4 | . 5 5 2 6 Storage 11 | . 14 14 11 9 Processor 6 | . . . 10 8 Hackware 1 | . . . . 8 Protection 7 | . 8 8 8 2 Energy Gun 5 | . 13 1 4 . Energy Cannon 4 | . . 12 3 7 Ballistic Gun 1 | . 1 . . 2 Ballistic Cannon 11 | . 8 14 14 7 Naked Turns . | . . . . . Heaviest Build 64 | 11 56 55 60 64 Greatest Support 83 | 20 20 10 60 83 Greatest Overweight (x) 5 | . 5 5 4 3 Average Overweight (x) 3 | . 3 5 2 2 Largest Inventory Capacity 30 | 8 30 20 20 20 Average Capacity 19 | 8 16 20 20 20 Most Carried 20 | 8 20 20 20 20 Average Carried 18 | 6 14 19 19 18 Final Capacity 20 | 8 20 20 20 20 Final Carried 20 | 8 20 20 20 20 Class Distribution -------------------- 63% | Mutant 36% | Scavenger-Mutant Dominant Class ---------------- Mutant | -10/Materials Mutant | -10/Mines Mutant | -9/Materials Scavenger-Mutant | -8/Materials Resources | -11 -10 -10 -9 -8 ----------- Run | Yrd Mat Min Mat Mat Matter Collected 2699 | 246 401 138 1169 745 Remotely . | . . . . . Salvage Created 3312 | 100 628 178 1267 1139 Parts 198 | 6 29 10 91 62 Haulers Intercepted 10 | . 2 . 5 3 Recyclers Shooed 3 | 1 1 . . 1 Parts Field Recycled . | . . . . . Retrieved Matter . | . . . . . Parts Self-Destructed . | . . . . . Prevented . | . . . . . Kills | -11 -10 -10 -9 -8 ------- Run | Yrd Mat Min Mat Mat Combat Hostiles Destroyed 70 | . 11 7 29 23 Melee 3 | . 3 . . . Guns 22 | . 6 3 6 7 Cannons 42 | . 1 4 22 15 Classes Destroyed 12 | 2 6 1 1 2 Worker 6 | . 4 . 1 1 Builder 7 | . 2 . 2 3 Tunneler 1 | 1 . . . . Hauler 10 | . 2 . 5 3 Recycler 3 | 1 . . 1 1 Operator 5 | . 2 . 3 . Watcher 9 | . 3 . 3 3 Swarmer 14 | . . 3 7 4 Grunt 43 | . 11 4 13 15 Brawler 1 | . . . . 1 Sentry 11 | . . . 9 2 Hunter 1 | . . . . 1 Best Kill Streak 6 | 2 5 3 4 6 Combat Bots Only 5 | . 4 3 4 5 Max Kills in Single Turn 2 | 1 1 1 2 2 Gunslinging . | . . . . . Exploded . | . . . . . Melee 1 | . 1 . . . Uniques/NPCs Destroyed . | . . . . . Combat | -11 -10 -10 -9 -8 -------- Run | Yrd Mat Min Mat Mat Hostile Shots Fired 355 | . 79 32 113 131 Missed 83 | . 22 17 20 24 Damage Taken 4125 | . 730 184 1251 1960 Core 678 | . 81 44 247 306 Absorbed by Shields . | . . . . . Regen/Repaired (Parts) 105 | . 105 . . . Core Remaining (%) 62 | 100 . 50 38 . Volleys Fired 311 | 6 61 14 122 108 Largest 2 | 2 2 2 2 2 Hottest 140 | 60 140 104 107 107 Shots Fired 614 | 12 120 28 238 216 Gun 208 | 12 98 4 51 43 Cannon 399 | . 15 24 187 173 Launcher . | . . . . . Special 7 | . 7 . . . Kinetic 337 | 6 43 14 148 126 Thermal 277 | 6 77 14 90 90 Explosive . | . . . . . Electromagnetic . | . . . . . Robot Hit Streak 25 | 3 9 14 25 14 Robot Miss Streak 5 | 1 4 5 4 4 Penetration Max . | . . . . . Secondary Targets . | . . . . . Shots Hit Robots 408 | 7 99 20 146 136 Core Hits 156 | 3 31 13 51 58 Critical Kills 3 | . 1 . 1 1 Critical Parts Destroyed 4 | . 4 . . . Critical Strikes 18 | . 5 . 9 4 Burn 1 | . . . 1 . Meltdown 2 | . . . 1 1 Blast 10 | . . . 7 3 Smash 5 | . 5 . . . Melee Attacks 40 | . 37 . 3 . Impact 32 | . 32 . . . Slashing . | . . . . . Piercing . | . . . . . Sneak Attacks 8 | . 5 . 3 . Combat Hostiles . | . . . . . Follow-up Attacks . | . . . . . Damage Inflicted 8354 | 69 1757 335 2966 3227 Guns 1874 | 69 681 29 494 601 Cannons 5124 | . 119 306 2472 2227 Explosions 399 | . . . . 399 Melee 861 | . 861 . . . Ramming . | . . . . . Kinetic 4068 | 13 300 146 1923 1686 Thermal 3149 | 56 596 189 1043 1265 Explosive 176 | . . . . 176 Electromagnetic 100 | . . . . 100 Impact 861 | . 861 . . . Slashing . | . . . . . Piercing . | . . . . . Highest Corruption 8 | . 4 4 2 8 Average Corruption 3 | . 3 4 2 6 Corruption Purged . | . . . . . Corruption Blocked . | . . . . . Effects 82 | . 24 25 33 . Message Errors 24 | . 7 9 8 . Matter Fused 25 | . 6 9 10 . Heat Flow Errors 6 | . 1 1 4 . Energy Discharges 9 | . 5 1 3 . Parts Rejected 3 | . 1 . 2 . Data Loss (minor) 5 | . . 3 2 . Data Loss (major) 3 | . . 1 2 . Misfires 5 | . 3 . 2 . Alerts 2 | . 1 1 . . Overload Shots . | . . . . . Overflow Damage 424 | . 191 2 31 200 Projectiles 63 | . 2 2 31 28 Explosions 172 | . . . . 172 Melee 189 | . 189 . . . Knockbacks 34 | . 6 2 2 24 Impact 6 | . 6 . . . Kinetic 27 | . . 2 2 23 Secondary 1 | . . . . 1 Self-Inflicted Damage 319 | . . . . 319 Shots 5 | . . . . 5 Rammed . | . . . . . Targets Rammed . | . . . . . Kicked . | . . . . . Crushed . | . . . . . Highest Temperature 582 | 40 331 294 582 430 Average Temperature 103 | 24 87 137 113 87 Received Heat Transfer 1725 | . 447 108 423 747 Effects 21 | . 1 . 17 3 Shutdowns 1 | . . . . 1 Energy Bleed 4 | . . . 3 1 Interference 4 | . 1 . 3 . Short Circuit 2 | . . . 1 1 Damage (minor) 3 | . . . 3 . Damage (major) 6 | . . . 6 . Damage (core) 1 | . . . 1 . Siege Activations . | . . . . . Robots Corrupted . | . . . . . Combat Hostiles . | . . . . . Parts Fried 10 | . 10 . . . Impact Corruptions 9 | . 9 . . . Robots Melted 2 | . . . 1 1 Combat Hostiles 2 | . . . 1 1 Parts Melted 5 | . 1 . 1 3 Heat Transferred 6138 | 125 1290 368 2257 2098 Parts Sabotaged . | . . . . . Parts Stolen . | . . . . . Parts Stripped . | . . . . . Power Chain Reactions 1 | . . . . 1 Alert | -11 -10 -10 -9 -8 ------- Run | Yrd Mat Min Mat Mat Peak Influence 419 | 10 222 126 266 419 Initial 104 | . 6 . . 104 Average 94 | 6 62 32 124 129 Maximum Alert Level 2 | . 1 . 1 2 Low Security (%) 88 | 100 97 100 82 79 Level 1 11 | . 2 . 17 20 Level 2 . | . . . . . Level 3 . | . . . . . Level 4 . | . . . . . Level 5 . | . . . . . High Security . | . . . . . Max Security . | . . . . . Squads Dispatched 13 | . 3 . 4 6 Investigation 6 | . . . 2 4 Extermination . | . . . . . Reinforcement 7 | . 3 . 2 2 Assault . | . . . . . Garrison . | . . . . . Intercept . | . . . . . Searches Triggered . | . . . . . Construction Impeded 2 | . . . . 2 Haulers Reinforced . | . . . . . Active Scanning Responses . | . . . . . Cargo Convoy Interrupts . | . . . . . Stealth | -11 -10 -10 -9 -8 --------- Run | Yrd Mat Min Mat Mat Distress Signals 8 | . 2 . 5 1 Communications Jammed . | . . . . . Distress Signals . | . . . . . Times Spotted 110 | . 26 7 43 34 Peak Tracking Total 4 | . 4 3 4 4 Tactical Retreats 3 | . 1 . 1 1 Traps | -11 -10 -10 -9 -8 ------- Run | Yrd Mat Min Mat Mat Traps Triggered 6 | . 2 . 1 3 Indirectly . | . . . . . Trap Hack Attempts . | . . . . . Triggered . | . . . . . Disarmed . | . . . . . Reprogrammed . | . . . . . Reused . | . . . . . Traps Extracted . | . . . . . Installed . | . . . . . Triggered . | . . . . . Machines | -11 -10 -10 -9 -8 ---------- Run | Yrd Mat Min Mat Mat Machines Disabled 12 | . . . 6 6 Max in Single Turn 2 | . . . 1 2 Machines Repaired . | . . . . . Machines Dismantled . | . . . . . Machines Sabotaged . | . . . . . Overloaded Fab Kills . | . . . . . Hacking | -11 -10 -10 -9 -8 --------- Run | Yrd Mat Min Mat Mat Machines Accessed 25 | . 6 1 14 4 Terminals 16 | . 4 1 9 2 Fabricators . | . . . . . Repair Stations 2 | . 1 . 1 . Recycling Units 5 | . 1 . 2 2 Scanalyzers 2 | . . . 2 . Garrison Access . | . . . . . Total Hacks 112 | . 24 2 71 15 Successful 66 | . 13 1 43 9 Failed 46 | . 11 1 28 6 Catastrophic 3 | . 1 . 2 . Database Lockouts . | . . . . . Manual 60 | . 19 2 31 8 Terminals 61 | . 16 2 37 6 Fabricators . | . . . . . Repair Stations 9 | . 5 . 4 . Recycling Units 19 | . 3 . 7 9 Scanalyzers 23 | . . . 23 . Garrison Access . | . . . . . Terminal Hacks 21 | . 5 1 13 2 Robot Analysis 9 | . 3 1 4 1 Prototype ID Bank 1 | . . . 1 . Branch Access Points 1 | . . . 1 . Alert Level 3 | . . . 3 . Unreport Threat 5 | . 2 . 2 1 Locate Traps 1 | . . . 1 . Hauler Manifests 1 | . . . 1 . Fabricator Hacks . | . . . . . Repair Station Hacks 6 | . 4 . 2 . Scan Component 4 | . 2 . 2 . Repair 2 | . 2 . . . Recycling Unit Hacks 2 | . . . . 2 Retrieve Matter 1 | . . . . 1 Retrieve Components 1 | . . . . 1 Scanalyzer 22 | . . . 22 . Insert Component 10 | . . . 10 . Analyze 12 | . . . 12 . Garrison Access Hacks . | . . . . . Unauthorized Hacks 15 | . 4 . 6 5 Terminals 5 | . 2 . 2 1 Botnet 5 | . 2 . 2 1 Fabricators . | . . . . . Repair Stations . | . . . . . Recycling Units 10 | . 2 . 4 4 Reject 5 | . 1 . 2 2 Mask 5 | . 1 . 2 2 Scanalyzers . | . . . . . Garrison Access . | . . . . . Data Cores Recovered . | . . . . . Used . | . . . . . Hacking Detections 24 | . 6 1 14 3 Full Trace Events 8 | . 1 . 5 2 Feedback Events . | . . . . . Feedback Blocked . | . . . . . Robot Schematics Acquired . | . . . . . Robots Built . | . . . . . Authchips . | . . . . . Time . | . . . . . Total Robot Build Rating . | . . . . . Part Schematics Acquired 10 | . . . 10 . Parts Built . | . . . . . Authchips . | . . . . . Time . | . . . . . Total Part Build Rating . | . . . . . Parts Repaired 2 | . 2 . . . Time 52 | . 52 . . . Parts Recycled . | . . . . . Recycled Matter . | . . . . . Retrieved Matter 52 | . . . . 52 Retrieved Components 10 | . . . . 10 Parts Scanalyzed 10 | . . . 10 . Part Schematics Acquired 10 | . . . 10 . Parts Damaged . | . . . . . Bothacking | -11 -10 -10 -9 -8 ------------ Run | Yrd Mat Min Mat Mat Used RIF Installer . | . . . . . Robots Hacked 2 | . 1 . 1 . Non-combat 2 | . 1 . 1 . Combat . | . . . . . Robot Hacks Applied 3 | . 1 . 2 . parse_system 2 | . 1 . 1 . no_distress 1 | . . . 1 . Relay Couplers Released . | . . . . . Fabnet Peak Effective % . | . . . . . Robots Rewired . | . . . . . Allies Hacked . | . . . . . Hacks Repelled . | . . . . . Allies | -11 -10 -10 -9 -8 -------- Run | Yrd Mat Min Mat Mat Total Allies . | . . . . . Largest Group . | . . . . . Highest-Rated Group . | . . . . . Highest-Rated Ally . | . . . . . Total Orders . | . . . . . Ally Attacks . | . . . . . Total Damage . | . . . . . Kills . | . . . . . Allies Corrupted . | . . . . . Allies Melted . | . . . . . Intel | -11 -10 -10 -9 -8 ------- Run | Yrd Mat Min Mat Mat Robot Analysis Total 9 | . 3 1 4 1 Derelict Logs Recovered 2 | . . 2 . . Drone Launches . | . . . . . Drone Recoveries . | . . . . . Exploration | -11 -10 -10 -9 -8 ------------- Run | Yrd Mat Min Mat Mat Turns Passed 7064 | 58 1704 1132 2723 1447 Spaces Moved 3780 | 23 868 689 1458 742 Core . | . . . . . Treads 367 | 12 12 . 251 92 Legs 11 | 11 . . . . Wheels 3402 | . 856 689 1207 650 Hover . | . . . . . Flight . | . . . . . Fastest Speed 95 | 120 95 155 110 110 Average Speed 141 | 140 137 155 140 135 Slowest Speed 160 | 160 160 155 160 160 Overloaded Moves . | . . . . . Propulsion Burnouts . | . . . . . Robots Hopped . | . . . . . Cave-ins Triggered . | . . . . . Exploration Rate (%) 64 | 3 85 98 88 50 Regions Visited 4 Branch Regions 1 Pre-discovered Areas 2 | . . 2 . . Known Exits Taken 1 | . . . 1 . Unknown Exits Taken 3 | 1 1 1 . . Scrap Searched 1 | . . 1 . . Spaces Dug . | . . . . . Terrain Destroyed 87 | . 2 . 5 80 Melee . | . . . . . Projectile 10 | . 2 . 5 3 AOE 77 | . . . . 77 Terrain Rammed . | . . . . . Walls Destroyed . | . . . . . Machines Disabled . | . . . . . Actions | -11 -10 -10 -9 -8 --------- Run | Yrd Mat Min Mat Mat Total 4832 | 36 1194 726 1902 974 Wait 438 | 2 152 12 198 74 Move 3776 | 22 867 688 1457 742 Hop . | . . . . . Pick Up 76 | 2 30 2 27 15 Fast Attach 24 | 1 6 2 12 3 Attach 19 | . 4 . 5 10 Detach 1 | . . . 1 . Swap 72 | 3 18 3 34 14 Drop 75 | . 19 5 43 8 Fire 311 | 6 61 14 122 108 Melee 40 | . 37 . 3 . Ram . | . . . . . Kick . | . . . . . Crush . | . . . . . Escape Stasis . | . . . . . Rewire . | . . . . . Trap . | . . . . . Miscellaneous . | . . . . . Route ------- -11/Scrapyard -10/Materials (discovered 3 exits: *Mat x2 / *Min) -10/Mines (discovered 2 exits: *Mat x2) -9/Materials (discovered 6 exits: *Mat x3 / *Min / *Sto x2) -8/Materials (discovered 1 exit: *Fac) History --------- Turn | Location | Event 3 | -11/Scrapyard | Discovered new exit (range 3) 59 | -11/Scrapyard | Entered Materials 233 | -10/Materials | Discovered new exit (range 16) 317 | -10/Materials | Build established: Mutant 569 | -10/Materials | Discovered new exit (range 14) 726 | -10/Materials | Repaired Lgt. Treads 753 | -10/Materials | Repaired Lgt. Armor Plating 759 | -10/Materials | Discovered new exit (range 11) 1763 | -10/Materials | Entered Mines 1901 | -10/Mines | Discovered new exit (range 12) 2085 | -10/Mines | Learned 2 Materials zone layouts 2263 | -10/Mines | Learned location of Storage (-9) 2458 | -10/Mines | Discovered new exit (range 6) 2895 | -10/Mines | Entered Materials 2895 | -9/Materials | Evolved 2 slots: Propulsion x1, Utility x1 2896 | -9/Materials | Identified exit to Storage 2896 | -9/Materials | Identified exit to Materials 3244 | -9/Materials | Discovered new exit (range 8) 3328 | -9/Materials | Build established: Scavenger-Mutant 4201 | -9/Materials | Identified exit to Mines 4506 | -9/Materials | Discovered exit to Materials (range 10) 4798 | -9/Materials | Build established: Mutant 5107 | -9/Materials | Discovered exit to Materials (range 11) 5292 | -9/Materials | Core integrity fell below 50% 5618 | -9/Materials | Entered another Materials area 5618 | -8/Materials | Evolved 2 slots: Propulsion x1, Utility x1 5931 | -8/Materials | Build established: Scavenger-Mutant 6238 | -8/Materials | Lost 3 parts (2n1w) 6369 | -8/Materials | Discovered new exit (range 4) 6372 | -8/Materials | Identified exit to Factory 7042 | -8/Materials | Core integrity fell below 50% 7065 | -8/Materials | Self-destructed Last Messages --------------- 07049_ K-01 Serf collects debris. 07051_ Signal Interpreter destroyed. 07051_ System corrupted by crushing effect (+3). 07052_ K-01 Serf cleans the Neutrino Reactor. 07054_ Hacking Suite destroyed. 07054_ System corrupted by crushing effect (+5). 07056_ K-01 Serf collects debris. 07057_ B-36 Bruiser destroyed. 07058_ Acquired 50 matter. 07058_ ALERT: Construction progress impeded, dispatching reinforcements to local area. 07058_ U-05 Engineer builds a Door. 07059_ K-01 Serf collects debris. 07060_ Acquired 4 matter. 07063_ Acquired 2 matter. 07064_ Neutrino Reactor explodes. 07064_ K-01 Serf destroyed. 07064_ Door malfunctions. 07064_ U-05 Engineer destroyed. 07064_ U-05 Engineer lays Concrete. Map ----- +----------------------------------------------------+ | ????????????????????????????????????????????????? | | ????????????????????????????????????????????????? | | ????????????????????????????????????????????????? | | ????????????????????????????????????????????????? | | ????????????????????????????????????????????????? | | ????????????????????????????????????????????????? | | ????????????????????????????????????????????????? | | ????????????????????????????????????????????????? | | ????????????????????????????????????????????????? | | ????????????????????????????????????????????????? | | ????????????????????????????????????????????????? | | ? ????????????????????????????????????????????? | | # ????????????????????????????????????????????? | | # ????????????????????????????????????????????? | | # #???????????????????????????????????????????? | | # #???????????????????????????????????????????? | | # #??????????????????????########?????????????? | | # ????????? ?????????????# [#?????????????? | | # ?????????? ???????????# *!=][#?????????????? | | # ############+########### %=![ #?????????????? | | r ^ + "Y"[ #?????????????? | | # """ %##????????????? | | ? w # % #????????????? | | ##+#### ###??####### u ##/#####+###????????????? | | # ##????????#u =; #!#??????????????? | | #############!=% @ #%#??????????????? | | = !! / %% !!%!!/% *= #=#??????????????? | | [ ]# # #####+##+;#!#* # #??????????????? | | "" # # #???# #*# %= t# #??????????????? | | "" # #???# # # ! # #??????????????? | | "" # #???# **# #####;## #??????????????? | | ### #???# **# #???# ##### #????????? | | # # #### #???# # #???# #?????? | | ####### ### #???# # #???# #?????? | | #???# [ # #???# #?????? | | #####/##### #???####### ??? #?????? | | ## #?# #?????????? ??######/##########?????? | | ## #?# #?????????? ???????# ??????????????? | | ## """ #?# #?????????? ???????# ?????????????? | | ## """ #?# #?????????? ???????# ?????????????? | | "# """ #?# #?????????? ???????? ????????????? | | ## #?# #?????????? ???????? ????????????? | | #####+##### #??????????????????? ???????????? | | #???????????????????###+#???????????? | | #####???????????????????????????????????? | | #???????????????????????????????????????? | | #???????????????????????????????????????? | | #???????????????????????????????????????? | | #???????????????????????????????????????? | | ### #???????????????????????????????????????? | +----------------------------------------------------+ Best States ------------- Heat Dissipation 53 Energy Generation 14 Energy Capacity 275 Matter Stores 300 Matter Capacity 300 Sight Range 16 Robot Scan Range 14 Terrain Scan Density 10 Armor Coverage 225 Evasion (%) 50 Recoil Reduction 4 Offensive Hacking 10 Item Schematics ----------------- Med. Storage Unit | -9/Materials | Scanalyzed Hacking Suite | -9/Materials | Scanalyzed Adv. Beam Cannon | -9/Materials | Scanalyzed Imp. Treads | -9/Materials | Scanalyzed Lgt. Nuclear Core | -9/Materials | Scanalyzed Hrd. Light Armor Plating | -9/Materials | Scanalyzed Hammer | -9/Materials | Scanalyzed Imp. Light Cannon | -9/Materials | Scanalyzed Transport Network Coupler | -9/Materials | Scanalyzed Lgt. Treads | -9/Materials | Scanalyzed Robot Schematics ------------------ None Fabricated ------------ Nothing Alien Tech Used ----------------- None Achievements -------------- None Challenges ------------ None Game ------ Seed SmallCompactStorm Manual? 0 Play Time 01:19:07 Cumulative 54.2 hours Start 2024.03.10 @ 16:56:04 End 2024.03.10 @ 18:18:06 Sessions 1 Manual Loads 0 Difficulty Rogue Special Mode None Game No. 30 Rogue 30 Adventurer 0 Explorer 0 Win Type - Total 1 Types 1/0/0/0/0/0/0/0/0 Lore% 31 Gallery% 47 Achievement% 37 Wizard Run 0 Options --------- Layout 0 ASCII 0 Keyboard 0 Movement Numpad Keybinds 0 Fullscreen 2 Font 18/SmallcapsGlow Map View 76x50 Zoom Use 0% Tactical HUD 1 Map Filters NONE Filters NONE Steam 1 RUN: f054495d-bae5-4a01-9079-ad8450890683